[Event "German Bundesliga 2024-25"]
[Site "Germany"]
[Date "2024.11.30"]
[Round "3.11"]
[White "Maurizzi, Marc`Andria"]
[Black "Anton Guijarro, David"]
[Result "1/2-1/2"]
[Annotator "TA"]
[ECO "B12"]
[WhiteElo "2585"]
[BlackElo "2671"]
[PlyCount "102"]
[EventDate "2024.09.27"]
[EventType "team-tourn"]
[EventCountry "GER"]
[SourceTitle "playchess.com"]
[Source "ChessBase"]
[SourceQuality "1"]
[WhiteTeam "St. Pauli"]
[BlackTeam "Viernheim"]
[TimeControl "40/5400+30:1800+30"]

{[%evp 47,102,15,39,24,33,29,35,9,29,0,0,-57,-44,-43,-31,-27,-30,-112,-115,-99,-110,-83,-14,-64,-53,-67,0,0,0,-4,-12,-3,0,0,0,0,-54,-58,-67,-43,0,0,-64,-342,-348,-370,-208,-202,-206,-156,-165,-139,0,-41,0,-110,0]} 1. e4 {[%emt 0:00:08]} c6 {[%emt 0:00:17]} 2. d4 {[%emt 0:01:25]} d5 {[%emt 0:00:12]} 3. e5 {[%emt 0:00:42]} Bf5 {[%emt 0:01:28]} 4. c4 {[%emt 0:00:58]} e6 {[%emt 0:00:17]} 5. Nc3 {[%emt 0:01:13]} dxc4 {[%emt 0:10:04]} 6. Bxc4 {[%emt 0:00:06]} Nd7 {[%emt 0:00:14]} 7. Nge2 {[%emt 0:00:38]} Ne7 {[%emt 0:04:32]} 8. O-O {[%emt 0:01:17]} Nb6 {[%emt 0:04:30]} 9. Bb3 {[%emt 0:00:46]} Qd7 {[%emt 0:02:00] B12: Caro-Kann: Advance Variation.} 10. Ng3 {[%emt 0:01:18]} O-O-O {[%emt 0:06:20]} 11. Qe2 $146 {[%emt 0:01:01]} ({Predecessor:} 11. Bg5 Qxd4 12. Nxf5 Qxe5 13. Nxe7+ Bxe7 14. Bd2 Bg5 15. Qe1 Qf5 16. Bxg5 Qxg5 17. a4 {1-0 Kurchenko,E (2125)-Afanasieva,M (1747) Novorossiysk Small Land op 2023 (3)}) 11... Bg6 {[%emt 0:10:26]} 12. Rd1 {[%emt 0:11:42]} Nf5 {[%emt 0:02:25]} 13. Nxf5 {[%emt 0:11:52]} Bxf5 {[%emt 0:00:06]} 14. a4 {[%emt 0:07:34]} Nd5 {[%emt 0:06:28]} 15. a5 {[%emt 0:00:56]} Be7 {[%emt 0:04:11]} 16. a6 {[%emt 0:05:48]} b6 {[%emt 0:03:15]} 17. Nxd5 {[%emt 0:21:25]} exd5 {[%emt 0:00:19]} 18. Bf4 {[%emt 0:03:44]} g5 {[%emt 0:04:41]} 19. Be3 {[%emt 0:00:27]} Kb8 {[%emt 0:04:35]} 20. Rac1 {[%emt 0:00:37]} Rc8 {[%emt 0:04:37]} 21. Bc2 {[%emt 0:01:39]} h5 {[%emt 0:03:11]} 22. Bxf5 {[%emt 0:03:37]} Qxf5 {[%emt 0:00:06]} 23. Rc3 {[%emt 0:00:09]} Kc7 {[%emt 0:12:33]} 24. Bd2 {[%emt 0:07:01]} Qe6 {[%emt 0:01:22]} (24... g4 {feels hotter.} 25. f3 Kd7 26. Rf1 Rh7) 25. Re3 {[%emt 0:07:26]} Kd7 {[%emt 0:03:23]} 26. Rf1 {[%emt 0:01:17]} Rcg8 {[%emt 0:01:05]} 27. f4 {[%emt 0:03:30]} gxf4 {[%emt 0:00:30]} 28. Rxf4 {[%emt 0:00:04]} Rg4 {[%emt 0:02:53]} (28... Bg5 29. Rxf7+ Be7 30. Bb4 Qxf7 31. e6+ $18) 29. Rxf7 {[%emt 0:03:47]} (29. Rxg4 $11 hxg4 30. b4) 29... Rhg8 $1 $15 {[%emt 0:02:17]} 30. Rf2 $1 {[%emt 0:00:55]} Rxd4 {[%emt 0:01:29]} 31. Qxh5 {[%emt 0:00:19]} Rh4 {[%emt 0:04:58]} 32. Qf7 {[%emt 0:00:28]} (32. Qf3 $1 $11 {remains equal.}) 32... Qxf7 $1 $17 {[%emt 0:01:01]} 33. Rxf7 {[%emt 0:00:01]} Ke6 {[%emt 0:00:11]} 34. Ref3 {[%emt 0:00:05]} Re4 {[%emt 0:00:45]} (34... Ra4 $17 {[%cal Oa4a2]} 35. g3 Rxa6) 35. Kf1 {[%emt 0:01:46]} (35. Rh7 $1 $11) 35... Ra4 $1 $15 {[%emt 0:00:37]} 36. g3 {[%emt 0:01:41]} Ra1+ {[%emt 0:00:32]} ({Black should try} 36... Rxa6 $15 37. Rh7 Bc5) 37. Kg2 {[%emt 0:00:31]} Rb1 {[%emt 0:00:36]} 38. b3 {[%emt 0:01:02]} d4 {[%emt 0:00:31]} (38... Rb2 $5 39. Rf2 $8 Rxb3 $11 (39... Rxd2 40. Rxe7+ Kxe7 41. Rxd2 $11)) 39. Rh7 $1 {[%emt 0:00:32]} c5 {[%emt 0:00:25]} (39... Rb2 $11 40. Rf2 Re8 (40... c5 41. Kf3 $11)) 40. Rh6+ $15 {[%emt 0:00:22]} Kd5 {[%emt 0:00:21]} 41. Rh7 {[%emt 0:09:27]} Re8 {[%emt 0:05:51]} 42. h4 {[%emt 0:03:51]} Rb2 $1 {[%emt 0:02:07]} 43. Rf2 $1 {[%emt 0:00:07]} Rxb3 {[%emt 0:03:43]} 44. Rff7 {[%emt 0:07:41]} Ke6 {[%emt 0:04:52]} (44... Rb2 45. Rxe7 Rxe7 46. Rxe7) 45. Bf4 $2 {[%emt 0:00:33][%mdl 8192]} (45. Bg5 $1 $15 Bxg5 46. hxg5) 45... c4 $19 {[%emt 0:03:15]} 46. h5 {[%emt 0:02:26]} c3 {[%emt 0:09:44]} (46... d3 $142 47. Rh6+ Kd5 (47... Kxf7 48. e6+ Kg7 49. Rg6+ Kh7 50. Rh6+ Kg7 51. Rg6+ Kh7 52. Rh6+ Kg8 53. Rg6+ Kh7 $11)) 47. h6 $19 {[%emt 0:03:56]} Rb2+ $1 {[%emt 0:00:05]} (47... d3 48. Rxe7+ Rxe7 49. Rxe7+ Kxe7 50. h7 Rb2+ 51. Kh3 $11) 48. Kh3 {[%emt 0:01:55]} Rb1 $1 {[%emt 0:00:28]} (48... d3 49. Rxe7+ Rxe7 50. Rxe7+ Kxe7 51. h7 $11) 49. Kg2 {[%emt 0:01:45] [#]} Rb2+ {[%emt 0:01:30]} (49... d3 $6 50. Rxe7+ Rxe7 51. Rxe7+ Kxe7 52. h7 Rb2+ 53. Kh3 $11) ({Better is} 49... Bc5 $1 $17 {And now ...c2 would win.} 50. Rf6+ (50. Rxa7 $2 d3 $19) 50... Kd5 51. Rxa7 Kc4) 50. Kh3 $1 $15 {[%emt 0:00:02]} Rb1 {[%emt 0:00:38]} (50... Bc5 $15 51. Rf6+ (51. Rxa7 d3 $11) 51... Kd5) 51. Kg2 $1 $17 {[%emt 0:00:01] [#]} Rb2+ {[%emt 0:00:52]} ({Reject} 51... d3 $6 52. Rxe7+ Rxe7 53. Rxe7+ Kxe7 54. h7 Rb2+ 55. Kh3 $11) ({Black should play} 51... Bc5 $1 $17 52. Rf6+ (52. Rxa7 $2 {is the wrong capture.} d3 $19) 52... Kd5 53. Rxa7 d3 54. Rd7+ Kc4) 1/2-1/2

[Event "German Bundesliga 2024-25"]
[Site "Germany"]
[Date "2024.11.30"]
[Round "3.11"]
[White "Vrolijk, Liam"]
[Black "Idani, Pouya"]
[Result "0-1"]
[Annotator "ChessBase"]
[ECO "E01"]
[WhiteElo "2512"]
[BlackElo "2603"]
[PlyCount "70"]
[EventDate "2024.09.27"]
[EventType "team-tourn"]
[EventCountry "GER"]
[SourceTitle "playchess.com"]
[Source "ChessBase"]
[SourceQuality "1"]
[WhiteTeam "Muelheim Nord"]
[BlackTeam "Bayern Muenchen"]
[TimeControl "40/5400+30:1800+30"]

1. d4 {[%emt 0:00:04]} Nf6 {[%emt 0:00:06]} 2. c4 {[%emt 0:00:07]} e6 {[%emt 0:00:03]} 3. Nf3 {[%emt 0:00:17]} d5 {[%emt 0:00:05]} 4. g3 {[%emt 0:00:09]} c5 {[%emt 0:00:04]} 5. cxd5 {[%emt 0:03:41]} cxd4 {[%emt 0:00:16]} 6. Bg2 {[%emt 0:09:12]} Qxd5 {[%emt 0:04:39]} 7. Qxd4 {[%emt 0:09:34]} Nc6 {[%emt 0:00:57]} 8. Qxd5 {[%emt 0:00:14]} Nxd5 {[%emt 0:00:05]} 9. Bd2 {[%emt 0:06:26]} f6 {[%emt 0:12:33]} 10. O-O {[%emt 0:03:16]} Nc7 {[%emt 0:05:04]} 11. Nc3 {[%emt 0:03:56]} e5 {[%emt 0:01:02]} 12. Rac1 {[%emt 0:03:11]} Be6 {[%emt 0:02:24]} 13. a3 {[%emt 0:10:22]} O-O-O {[%emt 0:05:59]} 14. Be3 {[%emt 0:03:05]} Kb8 {[%emt 0:02:18]} 15. b4 {[%emt 0:07:17]} Be7 {[%emt 0:05:05]} 16. Rfd1 {[%emt 0:09:48]} g5 {[%emt 0:17:27]} 17. Ne4 {[%emt 0:09:53]} g4 {[%emt 0:12:49]} 18. Ne1 {[%emt 0:00:25]} Nb5 {[%emt 0:04:59]} 19. Bc5 {[%emt 0:01:27]} f5 {[%emt 0:05:24]} 20. Bxe7 {[%emt 0:00:44]} Nxe7 {[%emt 0:00:08]} 21. Nc5 {[%emt 0:00:47]} Bc8 {[%emt 0:00:09]} 22. Rxd8 {[%emt 0:09:02]} Rxd8 {[%emt 0:00:04]} 23. a4 {[%emt 0:00:06]} Nd4 {[%emt 0:02:14]} 24. Bf1 {[%emt 0:00:10]} b6 {[%emt 0:05:03]} 25. Ncd3 {[%emt 0:00:09]} e4 {[%emt 0:01:51]} 26. Ne5 {[%emt 0:00:41]} Rd5 {[%emt 0:02:07]} 27. Nc4 {[%emt 0:01:25]} Nb3 {[%emt 0:03:38]} 28. Rc3 {[%emt 0:00:55]} Rd1 {[%emt 0:01:02]} 29. Ng2 {[%emt 0:04:21]} Be6 {[%emt 0:03:56]} 30. Nge3 {[%emt 0:00:56]} Rb1 {[%emt 0:00:08]} 31. f3 {[%emt 0:00:19]} gxf3 {[%emt 0:00:33]} 32. exf3 {[%emt 0:00:06]} Nd4 {[%emt 0:00:08]} 33. Kf2 {[%emt 0:01:27]} Nxf3 {[%emt 0:00:24]} 34. b5 {[%emt 0:00:33]} Ra1 {[%emt 0:01:08]} 35. Be2 {[%emt 0:00:33]} Nxh2 {[%emt 0:01:20]} 0-1

[Event "German Bundesliga 2024-25"]
[Site "Germany"]
[Date "2024.11.30"]
[Round "3.11"]
[White "Rakotomaharo, Fy Antenaina"]
[Black "Deac, Bogdan-Daniel"]
[Result "1/2-1/2"]
[Annotator "TA"]
[ECO "B30"]
[WhiteElo "2429"]
[BlackElo "2687"]
[PlyCount "66"]
[EventDate "2024.09.27"]
[EventType "team-tourn"]
[EventCountry "GER"]
[SourceTitle "playchess.com"]
[Source "ChessBase"]
[SourceQuality "1"]
[WhiteTeam "Bad Mergentheim"]
[BlackTeam "Baden-Baden"]
[TimeControl "40/5400+30:1800+30"]

{[%evp 9,66,18,34,31,35,7,39,24,31,10,9,9,51,24,24,35,37,4,23,20,31,28,24,30,37,8,14,0,0,0,0,0,22,25,49,27,34,21,29,28,47,36,36,-46,48,48,54,64,57,57,57,45,41,41,41,41,41,41,42]} 1. e4 {[%emt 0:00:07]} c5 {[%emt 0:00:18]} 2. Nf3 {[%emt 0:00:34]} Nc6 {[%emt 0:00:13]} 3. Bb5 {[%emt 0:01:50]} Nf6 {[%emt 0:02:42]} 4. Bxc6 {[%emt 0:02:11]} dxc6 {[%emt 0:01:22]} 5. d3 {[%emt 0:00:06]} Qc7 {[%emt 0:08:12]} 6. a4 {[%emt 0:04:39]} e5 {[%emt 0:07:48][%cal Oc5c4]} 7. Na3 {[%emt 0:01:53]} Be6 {[%emt 0:16:34][%cal Oc5c4]} 8. O-O {[%emt 0:07:06]} Be7 {[%emt 0:07:11]} 9. Ng5 {[%emt 0:28:21]} Bg4 {[%emt 0:00:49]} 10. f3 {[%emt 0:00:06]} Bh5 {[%emt 0:00:29]} 11. Nc4 {[%emt 0:00:42]} Nd7 {[%emt 0:06:41]} 12. Qe1 {[%emt 0:08:43]} b5 {[%emt 0:10:10]} 13. Qa5 {[%emt 0:07:57]} Qb8 {[%emt 0:06:03]} (13... Qb7 $5 14. axb5 cxb5 $17) 14. axb5 {[%emt 0:01:11]} cxb5 {[%emt 0:00:22][%cal Bc6b5,Bb5b4][%mdl 32]} 15. Na3 {[%emt 0:00:44]} b4 {[%emt 0:00:41]} 16. Nc4 {[%emt 0:00:51]} O-O {[%emt 0:00:26]} 17. Be3 {[%emt 0:10:09]} f6 {[%emt 0:05:44]} 18. Ne6 {[%emt 0:10:35] A dynamic duo of knights.} Rc8 {[%emt 0:00:35]} 19. Qa6 {[%emt 0:00:08][%cal Oe6g7] [#] Inhibits Rc6. Nxg7! would now be deadly.} Nb6 {[%emt 0:08:17] And now ...Nxc4 would win.} 20. f4 {[%emt 0:07:20]} Bf7 {[%emt 0:11:10]} 21. f5 {[%emt 0:00:44]} Nxc4 {[%emt 0:00:10]} 22. dxc4 {[%emt 0:01:40]} Be8 {[%emt 0:01:48]} 23. Rfd1 {[%emt 0:01:50][%cal Bf1d1,Bd1d5,Bd5d7,Bd7a7][%mdl 32]} Rc6 {[%emt 0:02:28]} 24. Qa5 {[%emt 0:00:32][%cal Od1d5]} Qc8 {[%emt 0:00:08]} 25. Rd5 {[%emt 0:02:08][%cal Re3c5]} Bf7 {[%emt 0:01:22]} 26. Qb5 {[%emt 0:00:46]} ({Better is} 26. b3 $14) 26... Rb6 {[%emt 0:01:10]} (26... a5 $15 27. Nd8 (27. Rxa5 $2 {loses.} Be8 $19) 27... Bxd8 28. Rxd8+ Qxd8 29. Qxc6 a4) 27. Qd7 $14 {[%emt 0:00:26] White is slightly better.} Qxd7 {[%emt 0:00:34]} 28. Rxd7 {[%emt 0:00:04]} Bxe6 {[%emt 0:00:03]} 29. fxe6 {[%emt 0:00:57]} Rxe6 {[%emt 0:00:01]} 30. Raxa7 {[%emt 0:00:10]} Rxa7 {[%emt 0:00:05]} 31. Rxa7 {[%emt 0:00:04] KRB-KRB} Kf8 {[%emt 0:00:10]} 32. Kf1 {[%emt 0:01:22]} h5 {[%emt 0:01:16]} 33. Ke2 {[%emt 0:00:32]} Rc6 {[%emt 0:00:06] Weighted Error Value: White=0.15 (very precise) /Black=0.12 (very precise) .  Mistake:       	White=1     	Black=1      Inaccurate:     	White=4     	Black=2      OK:         	White=8     	Black=12     Best:        	White=1     	Black=2} 1/2-1/2

[Event "German Bundesliga 2024-25"]
[Site "Germany"]
[Date "2024.11.30"]
[Round "3.12"]
[White "Bacrot, Etienne"]
[Black "Razafindratsima, Timothe"]
[Result "1/2-1/2"]
[Annotator "RC"]
[ECO "A11"]
[WhiteElo "2653"]
[BlackElo "2465"]
[PlyCount "128"]
[EventDate "2024.09.27"]
[EventType "team-tourn"]
[EventCountry "GER"]
[SourceTitle "playchess.com"]
[Source "ChessBase"]
[SourceQuality "1"]
[WhiteTeam "Baden-Baden"]
[BlackTeam "Bad Mergentheim"]
[TimeControl "40/5400+30:1800+30"]

1. c4 {[%emt 0:00:08]} Nf6 {[%emt 0:00:23]} 2. Nc3 {[%emt 0:00:11]} e6 {[%emt 0:00:28]} 3. Nf3 {[%emt 0:01:02]} d5 {[%emt 0:00:35]} 4. e3 {[%emt 0:00:21]} Nbd7 {[%emt 0:02:24]} 5. b3 {[%emt 0:01:31]} Bd6 {[%emt 0:04:50]} 6. Bb2 {[%emt 0:07:16]} c6 {[%emt 0:11:02]} 7. Qc2 {[%emt 0:02:56]} a6 {[%emt 0:04:19]} 8. d4 {[%emt 0:06:44]} e5 {[%emt 0:25:36]} 9. cxd5 {[%emt 0:04:44]} cxd5 {[%emt 0:00:29]} 10. dxe5 {[%emt 0:00:33]} Nxe5 {[%emt 0:00:09]} 11. Be2 {[%emt 0:00:06]} Nc6 {[%emt 0:05:14]} 12. Rd1 {[%emt 0:03:17]} Qe7 {[%emt 0:12:14]} 13. O-O {[%emt 0:03:26]} Be6 {[%emt 0:02:04]} 14. e4 {[%emt 0:07:38]} d4 {[%emt 0:06:41]} 15. Nxd4 {[%emt 0:13:58]} Nxd4 {[%emt 0:00:06]} 16. Rxd4 {[%emt 0:00:02]} Be5 {[%emt 0:00:08]} 17. Rd3 {[%emt 0:00:07]} Qc7 {[%emt 0:04:41]} 18. g3 {[%emt 0:01:05]} Nxe4 {[%emt 0:01:54]} 19. Re3 {[%emt 0:02:58]} Nxc3 {[%emt 0:05:38]} 20. Bxc3 {[%emt 0:01:51]} Bd4 {[%emt 0:05:17]} 21. Rxe6+ {[%emt 0:21:33]} fxe6 {[%emt 0:00:04]} 22. Bh5+ {[%emt 0:00:02]} g6 {[%emt 0:00:07]} 23. Bxg6+ {[%emt 0:00:04]} hxg6 {[%emt 0:00:04]} 24. Qxg6+ {[%emt 0:00:05]} Qf7 {[%emt 0:00:06]} 25. Qxf7+ {[%emt 0:00:04]} Kxf7 {[%emt 0:00:05]} 26. Bxd4 {[%emt 0:00:04]} Rhd8 {[%emt 0:00:11]} 27. Be3 {[%emt 0:02:28]} Rac8 {[%emt 0:00:06]} 28. Kg2 {[%emt 0:00:52]} Rc2 {[%emt 0:07:20]} 29. Ra1 {[%emt 0:00:02]} a5 {[%emt 0:01:06]} 30. h4 {[%emt 0:04:07]} b5 {[%emt 0:00:03]} 31. h5 {[%emt 0:07:43]} a4 {[%emt 0:01:06]} 32. Kf3 {[%emt 0:00:03]} a3 {[%emt 0:01:07]} 33. g4 {[%emt 0:00:05]} Kg7 {[%emt 0:00:33]} 34. g5 {[%emt 0:02:56]} Rd5 {[%emt 0:00:06]} 35. Ke4 {[%emt 0:00:20]} Rf5 {[%emt 0:00:30]} 36. Bd4+ {[%emt 0:03:33]} Kg8 {[%emt 0:00:12]} 37. f4 {[%emt 0:01:34]} Rd5 {[%emt 0:00:45]} 38. h6 {[%emt 0:01:09]} Kh7 {[%emt 0:00:16]} 39. Rh1 {[%emt 0:00:42]} Rd7 {[%emt 0:00:43]} 40. Bg7 {[%emt 0:01:15]} Rxg7 {[%emt 0:01:14]} 41. hxg7+ {[%emt 0:30:10]} Kxg7 {[%emt 0:30:03]} 42. Ra1 {[%emt 0:00:00]} b4 {[%emt 0:00:00]} 43. Kd3 {[%emt 0:00:00]} Rc3+ {[%emt 0:00:00]} 44. Kd2 {[%emt 0:00:00]} Rf3 {[%emt 0:00:00]} 45. Re1 {[%emt 0:00:00]} Kf7 {[%emt 0:00:00]} 46. Re4 {[%emt 0:00:00]} Rf2+ {[%emt 0:00:00]} 47. Kd3 {[%emt 0:00:00]} Rxa2 {[%emt 0:00:30]} 48. Rxb4 {[%emt 0:00:00]} Rb2 {[%emt 0:02:33]} 49. Kc3 {[%emt 0:00:00]} Rf2 {[%emt 0:00:03]} 50. Ra4 {[%emt 0:01:14]} a2 {[%emt 0:01:19]} 51. Kd3 {[%emt 0:02:01]} Kg6 {[%emt 0:01:01]} 52. Ke4 {[%emt 0:00:20]} Re2+ {[%emt 0:00:19]} 53. Kf3 {[%emt 0:00:16]} Rb2 {[%emt 0:00:01]} 54. Ra6 {[%emt 0:00:14]} Kf5 {[%emt 0:00:31]} 55. Ra5+ {[%emt 0:00:11]} Kg6 {[%emt 0:00:06]} 56. Ke4 {[%emt 0:00:30]} Re2+ {[%emt 0:00:49]} 57. Kd4 {[%emt 0:00:24]} Rd2+ {[%emt 0:00:58]} 58. Ke4 {[%emt 0:00:50]} Re2+ {[%emt 0:00:08]} 59. Kf3 {[%emt 0:00:43]} Rb2 {[%emt 0:00:04]} 60. b4 {[%emt 0:00:14]} Rb3+ {[%emt 0:00:51]} 61. Kg4 {[%emt 0:00:14]} Rxb4 {[%emt 0:00:09]} 62. Ra6 {[%emt 0:00:20]} a1=Q {[%emt 0:00:50]} 63. Rxa1 {[%emt 0:00:06]} e5 {[%emt 0:00:03]} 64. Ra6+ {[%emt 0:00:07]} Kg7 {[%emt 0:00:29]} 1/2-1/2

[Event "German Bundesliga 2024-25"]
[Site "Germany"]
[Date "2024.11.30"]
[Round "3.12"]
[White "Korobov, Anton"]
[Black "Janik, Igor"]
[Result "1-0"]
[Annotator "ChessBase"]
[ECO "E15"]
[WhiteElo "2636"]
[BlackElo "2513"]
[PlyCount "65"]
[EventDate "2024.09.27"]
[EventType "team-tourn"]
[EventCountry "GER"]
[SourceTitle "playchess.com"]
[Source "ChessBase"]
[SourceQuality "1"]
[WhiteTeam "Viernheim"]
[BlackTeam "St. Pauli"]
[TimeControl "40/5400+30:1800+30"]

1. d4 {[%emt 0:00:05]} Nf6 {[%emt 0:00:05]} 2. c4 {[%emt 0:00:11]} e6 {[%emt 0:00:04]} 3. Nf3 {[%emt 0:00:07]} b6 {[%emt 0:00:04]} 4. g3 {[%emt 0:00:37]} Ba6 {[%emt 0:00:06]} 5. b3 {[%emt 0:01:11]} Bb4+ {[%emt 0:00:15]} 6. Bd2 {[%emt 0:00:27]} Be7 {[%emt 0:00:05]} 7. Nc3 {[%emt 0:00:09]} d5 {[%emt 0:00:10]} 8. cxd5 {[%emt 0:00:54]} exd5 {[%emt 0:00:07]} 9. Bg2 {[%emt 0:00:06]} O-O {[%emt 0:00:07]} 10. Ne5 {[%emt 0:00:11]} Bb7 {[%emt 0:20:01]} 11. Rc1 {[%emt 0:00:34]} Re8 {[%emt 0:01:13]} 12. O-O {[%emt 0:01:53]} Nbd7 {[%emt 0:03:49]} 13. Bf4 {[%emt 0:02:17]} Nf8 {[%emt 0:03:50]} 14. e3 {[%emt 0:03:12]} Ne6 {[%emt 0:02:33]} 15. h4 {[%emt 0:00:19]} c5 {[%emt 0:06:07]} 16. Bg5 {[%emt 0:13:31]} Nxg5 {[%emt 0:17:44]} 17. hxg5 {[%emt 0:00:36]} Ne4 {[%emt 0:00:02]} 18. Qh5 {[%emt 0:13:10]} g6 {[%emt 0:02:15]} 19. Qh1 {[%emt 0:00:26]} Bxg5 {[%emt 0:06:02]} 20. Nxf7 {[%emt 0:05:51]} Qe7 {[%emt 0:00:40]} 21. Nxg5 {[%emt 0:06:24]} Qxg5 {[%emt 0:00:38]} 22. Nxe4 {[%emt 0:03:51]} dxe4 {[%emt 0:00:06]} 23. dxc5 {[%emt 0:00:19]} bxc5 {[%emt 0:00:09]} 24. Rfd1 {[%emt 0:00:46]} Re7 {[%emt 0:02:04]} 25. Rc4 {[%emt 0:03:31]} Rf8 {[%emt 0:00:43]} 26. Qh4 {[%emt 0:10:02]} Qe5 {[%emt 0:06:13]} 27. Rdc1 {[%emt 0:01:59]} g5 {[%emt 0:02:59]} 28. Qh5 {[%emt 0:03:25]} Qf6 {[%emt 0:01:39]} 29. Rxc5 {[%emt 0:03:46]} Qxf2+ {[%emt 0:01:38]} 30. Kh2 {[%emt 0:02:11]} Qxe3 {[%emt 0:00:09]} 31. Rxg5+ {[%emt 0:01:01]} Kh8 {[%emt 0:00:13]} 32. Qh6 {[%emt 0:00:31]} Qf2 {[%emt 0:00:55]} 33. Rf1 {[%emt 0:01:42]} 1-0

[Event "German Bundesliga 2024-25"]
[Site "Germany"]
[Date "2024.11.30"]
[Round "3.12"]
[White "Alonso Rosell, Alvar"]
[Black "Beerdsen, Thomas"]
[Result "1-0"]
[Annotator "ChessBase"]
[ECO "D05"]
[WhiteElo "2532"]
[BlackElo "2508"]
[PlyCount "67"]
[EventDate "2024.09.27"]
[EventType "team-tourn"]
[EventCountry "GER"]
[SourceTitle "playchess.com"]
[Source "ChessBase"]
[SourceQuality "1"]
[WhiteTeam "Bayern Muenchen"]
[BlackTeam "Muelheim Nord"]
[TimeControl "40/5400+30:1800+30"]

1. d4 {[%emt 0:00:09]} d5 {[%emt 0:00:41]} 2. Nf3 {[%emt 0:02:06]} Nf6 {[%emt 0:00:51]} 3. e3 {[%emt 0:01:33]} e6 {[%emt 0:03:28]} 4. Bd3 {[%emt 0:01:50]} c5 {[%emt 0:01:57]} 5. b3 {[%emt 0:00:12]} Nc6 {[%emt 0:01:06]} 6. O-O {[%emt 0:00:49]} b6 {[%emt 0:00:52]} 7. Bb2 {[%emt 0:04:21]} Be7 {[%emt 0:01:19]} 8. Nbd2 {[%emt 0:06:19]} Bb7 {[%emt 0:03:42]} 9. a3 {[%emt 0:05:38]} O-O {[%emt 0:03:48]} 10. dxc5 {[%emt 0:02:17]} bxc5 {[%emt 0:07:44]} 11. c4 {[%emt 0:00:48]} Nd7 {[%emt 0:06:50]} 12. Qb1 {[%emt 0:13:26]} h6 {[%emt 0:04:12]} 13. cxd5 {[%emt 0:02:21]} exd5 {[%emt 0:00:26]} 14. Bh7+ {[%emt 0:00:11]} Kh8 {[%emt 0:00:04]} 15. Bf5 {[%emt 0:00:09]} Nb6 {[%emt 0:05:20]} 16. Rd1 {[%emt 0:06:12]} Rb8 {[%emt 0:07:19]} 17. Ne4 {[%emt 0:05:05]} Bc8 {[%emt 0:14:22]} 18. Ng3 {[%emt 0:06:17]} Bf6 {[%emt 0:05:23]} 19. Bxc8 {[%emt 0:01:39]} Rxc8 {[%emt 0:02:01]} 20. Nh5 {[%emt 0:01:34]} Bxb2 {[%emt 0:00:39]} 21. Qxb2 {[%emt 0:00:04]} Rg8 {[%emt 0:00:53]} 22. Nf4 {[%emt 0:06:51]} Qd6 {[%emt 0:03:34]} 23. Rac1 {[%emt 0:00:41]} Rgd8 {[%emt 0:05:43]} 24. Nh5 {[%emt 0:05:33]} d4 {[%emt 0:06:54]} 25. Ng3 {[%emt 0:03:18]} Ne5 {[%emt 0:02:15]} 26. Nxe5 {[%emt 0:05:16]} Qxe5 {[%emt 0:00:04]} 27. h3 {[%emt 0:00:22]} Rb8 {[%emt 0:02:56]} 28. exd4 {[%emt 0:01:30]} cxd4 {[%emt 0:03:17]} 29. Rd3 {[%emt 0:02:28]} Na4 {[%emt 0:03:32]} 30. Qe2 {[%emt 0:00:12]} Qg5 {[%emt 0:01:33]} 31. f4 {[%emt 0:00:14]} Qxf4 {[%emt 0:02:34]} 32. Rf1 {[%emt 0:00:02]} Qg5 {[%emt 0:00:36]} 33. bxa4 {[%emt 0:00:11]} Re8 {[%emt 0:00:15]} 34. Qg4 {[%emt 0:01:42]} 1-0

[Event "German Bundesliga 2024-25"]
[Site "Germany"]
[Date "2024.11.30"]
[Round "3.13"]
[White "Feuerstack, Aljoscha"]
[Black "Amin, Bassem"]
[Result "0-1"]
[Annotator "ChessBase"]
[ECO "C45"]
[WhiteElo "2471"]
[BlackElo "2647"]
[PlyCount "68"]
[EventDate "2024.09.27"]
[EventType "team-tourn"]
[EventCountry "GER"]
[SourceTitle "playchess.com"]
[Source "ChessBase"]
[SourceQuality "1"]
[WhiteTeam "St. Pauli"]
[BlackTeam "Viernheim"]
[TimeControl "40/5400+30:1800+30"]

1. e4 {[%emt 0:00:03]} e5 {[%emt 0:01:10]} 2. Nf3 {[%emt 0:00:10]} Nc6 {[%emt 0:00:05]} 3. d4 {[%emt 0:00:13]} exd4 {[%emt 0:00:26]} 4. Nxd4 {[%emt 0:00:09]} Bc5 {[%emt 0:06:52]} 5. Nb3 {[%emt 0:03:04]} Bb4+ {[%emt 0:02:59]} 6. c3 {[%emt 0:16:05]} Be7 {[%emt 0:00:24]} 7. Bf4 {[%emt 0:00:17]} Bf6 {[%emt 0:08:36]} 8. N1d2 {[%emt 0:03:26]} Nge7 {[%emt 0:00:39]} 9. h4 {[%emt 0:14:36]} Ng6 {[%emt 0:19:16]} 10. Be3 {[%emt 0:00:32]} Bxh4 {[%emt 0:05:30]} 11. Qh5 {[%emt 0:08:55]} d6 {[%emt 0:02:41]} 12. g3 {[%emt 0:04:24]} Bf6 {[%emt 0:03:06]} 13. f4 {[%emt 0:00:52]} Nge7 {[%emt 0:15:20]} 14. O-O-O {[%emt 0:11:24]} g6 {[%emt 0:00:44]} 15. Qh2 {[%emt 0:03:00]} Bg4 {[%emt 0:04:41]} 16. Be2 {[%emt 0:00:09]} Qc8 {[%emt 0:02:42]} 17. e5 {[%emt 0:15:24]} dxe5 {[%emt 0:01:20]} 18. Ne4 {[%emt 0:00:14]} Bg7 {[%emt 0:00:43]} 19. fxe5 {[%emt 0:00:32]} Bxe2 {[%emt 0:03:12]} 20. Qxe2 {[%emt 0:01:22]} Nxe5 {[%emt 0:05:19]} 21. Bg5 {[%emt 0:03:47]} Qe6 {[%emt 0:02:29]} 22. Nbc5 {[%emt 0:06:45]} Qc6 {[%emt 0:00:34]} 23. Nd7 {[%emt 0:01:13]} O-O-O {[%emt 0:02:51]} 24. Nxe5 {[%emt 0:00:11]} Bxe5 {[%emt 0:00:37]} 25. Bxe7 {[%emt 0:04:31]} Rde8 {[%emt 0:00:06]} 26. Bh4 {[%emt 0:01:32]} f5 {[%emt 0:02:34]} 27. Nd2 {[%emt 0:00:27]} Bxc3 {[%emt 0:01:25]} 28. Qf1 {[%emt 0:00:16]} Bxd2+ {[%emt 0:02:28]} 29. Kxd2 {[%emt 0:00:06]} Re5 {[%emt 0:00:49]} 30. Rc1 {[%emt 0:01:10]} Rd5+ {[%emt 0:00:19]} 31. Ke2 {[%emt 0:00:27]} Re8+ {[%emt 0:00:15]} 32. Kf3 {[%emt 0:00:34]} Rd3+ {[%emt 0:01:12]} 33. Kf4 {[%emt 0:00:02]} g5+ {[%emt 0:00:16]} 34. Kxf5 {[%emt 0:00:19]} Qe6+ {[%emt 0:00:47]} 0-1